bitfinex/quotes_ETHUSD_20250625
["timestamp","ask_amount","ask_price","bid_price","bid_amount"]
[1750812510134,6.713,2444.9,2444.5,4.09079188]
[1750812510428,0.12785141,2444.8,2444.5,4.09079188]
[1750812510632,6.713,2444.9,2444.5,4.09079188]
[1750812510829,0.12785164,2444.8,2444.4,4.09088829]
[1750812511033,10.80317536,2444.9,2444.4,5.0153907]
[1750812511230,0.12785179,2444.8,2444.5,4.09080507]
[1750812511439,6.713,2444.9,2444.5,4.09080507]
[1750812511666,0.12785168,2444.8,2444.5,4.09080507]
[1750812511866,10.8031639,2444.9,2444.5,4.09080507]
[1750812512071,4.218208,2444.8,2444.4,0.92450241]
[1750812512371,4.09035632,2444.8,2444.4,0.92450241]
[1750812512677,10.80319697,2444.9,2444.4,5.01540058]
[1750812512965,0.12785356,2444.8,2444.4,5.01540058]
[1750812513173,10.80319697,2444.9,2444.4,5.01540058]
[1750812513358,0.12785294,2444.8,2444.4,5.01540058]
[1750812513664,10.80319697,2444.9,2444.4,5.01540058]
[1750812513856,0.12785254,2444.8,2444.4,5.01540058]
[1750812514036,10.80319697,2444.9,2444.5,4.09081147]
[1750812514230,0.12785278,2444.8,2444.5,4.09081147]
[1750812514638,10.80319697,2444.9,2444.5,4.09081147]
[1750812514838,0.12785295,2444.8,2444.5,4.09081147]
[1750812515038,10.80319697,2444.9,2444.4,5.01540139]
[1750812515233,0.12785274,2444.8,2444.5,4.0908031]
[1750812515439,6.713,2444.9,2444.5,4.0908031]
[1750812515639,0.12785265,2444.8,2444.5,4.0908031]
[1750812516367,6.713,2444.9,2444.5,4.0908031]
[1750812516574,0.12785155,2444.8,2444.5,4.0908031]
[1750812516864,0.12785155,2444.8,2444.6,4.09064418]
[1750812517069,0.12785126,2444.8,2444.6,4.09054991]
[1750812517371,0.12785062,2444.8,2444.6,4.09054991]
[1750812517969,0.12785099,2444.8,2444.6,4.09054991]
[1750812518376,0.12785104,2444.8,2444.6,4.09054991]
[1750812518876,0.12785106,2444.8,2444.6,4.09054991]
[1750812519543,6.71,2444.9,2444.6,4.09054991]
[1750812520155,6.71,2444.9,2444.5,4.09072742]
[1750812520474,6.71,2444.9,2444.5,0.91061391]
[1750812520678,6.71,2444.9,2444.5,5.0013021]
[1750812521374,6.71,2444.9,2444.6,4.09062532]
[1750812525180,6.709,2445.0,2444.7,4.09038637]
[1750812525484,10.0,2445.1,2444.7,4.09038637]
[1750812525644,6.83684217,2445.0,2444.7,4.09038637]
[1750812525844,6.709,2445.0,2444.7,4.09038637]
[1750812526781,10.79882885,2445.1,2444.7,4.09038637]
[1750812526941,0.1278422,2445.0,2444.7,4.09038637]
[1750812527145,0.12784213,2445.0,2444.7,4.09038637]
[1750812527378,0.12784213,2445.0,2444.7,5.07872426]
[1750812527576,10.79882885,2445.1,2444.7,5.07872426]
[1750812527876,0.12784247,2445.0,2444.7,5.07872426]
[1750812528075,4.08998412,2445.0,2444.5,0.91061391]
[1750812528268,4.08998412,2445.0,2444.5,5.0013299]
[1750812528872,0.12784562,2444.9,2444.5,5.0013299]
[1750812529074,4.08998412,2445.0,2444.5,5.0013299]
[1750812529272,0.12784583,2444.9,2444.5,5.0013299]
[1750812529474,4.08998412,2445.0,2444.5,5.0013299]
[1750812529668,0.12784663,2444.9,2444.5,5.0013299]
[1750812529872,4.08998412,2445.0,2444.5,5.0013299]
[1750812530063,4.2180889,2444.9,2444.4,4.09092969]
[1750812530258,0.1278479,2444.8,2444.5,4.09080876]
[1750812530465,0.12785058,2444.8,2444.5,4.09080876]
[1750812530665,0.12784981,2444.8,2444.5,4.09080876]
[1750812530865,4.9090493,2444.9,2444.5,4.09080876]
[1750812531060,0.1278495,2444.8,2444.5,4.09080876]
[1750812531267,4.9090493,2444.9,2444.5,4.09080876]
[1750812531567,0.12784968,2444.8,2444.5,4.09080876]
[1750812531769,4.9090493,2444.9,2444.5,4.09080876]
[1750812531968,0.12785015,2444.8,2444.5,4.09080876]
[1750812532167,4.9090493,2444.9,2444.5,4.09080876]
[1750812532387,0.12785015,2444.8,2444.5,4.09080876]
[1750812532561,4.9090493,2444.9,2444.5,4.09080876]
[1750812532956,0.12785,2444.8,2444.5,4.09080876]
[1750812533200,4.90905594,2444.9,2444.5,4.67078414]
[1750812533388,0.12784925,2444.8,2444.5,4.09080876]
[1750812533689,4.90905594,2444.9,2444.5,4.09080963]
[1750812533868,0.12785031,2444.8,2444.5,4.09080963]
[1750812534170,4.90905594,2444.9,2444.5,4.09080963]
[1750812534465,0.12785033,2444.8,2444.5,4.09080963]
[1750812534665,4.08970885,2445.2,2444.6,4.84913489]
[1750812534864,10.92467336,2445.1,2444.6,4.84913489]
[1750812535098,0.1278422,2445.0,2444.6,4.84913489]
[1750812535390,0.12784073,2444.9,2444.6,4.84913489]
[1750812535589,10.79682374,2445.1,2444.6,4.84913489]
[1750812535786,0.1278409,2445.0,2444.7,4.09046506]
[1750812536084,10.79682205,2445.1,2444.7,4.09038883]
[1750812536286,0.12784088,2445.0,2444.7,4.09038883]
[1750812536469,0.12784093,2444.9,2444.7,4.09038883]
[1750812536674,6.707,2445.1,2444.7,4.09038883]
[1750812536880,0.12784095,2445.0,2444.7,4.09038883]
[1750812537065,0.12784095,2444.9,2444.7,4.09038883]
[1750812537265,6.707,2445.1,2444.7,4.09038883]
[1750812537485,0.12784095,2445.0,2444.7,4.09038883]
[1750812537687,0.12784095,2444.9,2444.7,4.09038883]
[1750812537864,0.8094,2445.3,2444.7,0.89396655]
[1750812538065,6.83383496,2445.2,2444.9,4.0900393]
[1750812538295,0.12783496,2445.1,2444.9,4.0900393]
[1750812538472,17.5154,2445.3,2444.9,4.0900393]
[1750812538666,0.12782655,2445.2,2444.9,4.0900393]
[1750812538868,0.12782655,2445.1,2444.9,4.0900393]
[1750812539200,17.5154,2445.3,2444.9,4.0900393]
[1750812539386,0.12782692,2445.2,2444.9,4.0900393]
[1750812539585,0.12782692,2445.1,2444.9,4.0900393]
[1750812539788,16.706,2445.4,2445.0,4.08989231]
[1750812539989,0.12782899,2445.3,2445.1,4.08979689]
[1750812540191,0.12782899,2445.2,2444.9,1.5892351]
[1750812540379,4.08949013,2445.3,2444.9,4.86124521]
[1750812541075,20.79540723,2445.4,2444.9,4.86124521]
[1750812541480,20.79440723,2445.4,2444.9,4.86124521]
[1750812541679,16.705,2445.4,2445.0,4.08994684]
[1750812542096,0.7516,2445.5,2445.1,4.08980022]
[1750812542414,6.50452578,2445.7,2445.3,4.89629885]
[1750812542415,1.42436667,2445.7,2445.3,4.89629885]
[1750812542594,6.705,2445.6,2445.3,4.89629885]
[1750812542797,4.84620861,2445.9,2445.4,4.08929472]
[1750812543112,6.705,2445.8,2445.5,4.08907382]
[1750812543919,10.79365352,2445.8,2445.5,0.44356487]
[1750812544092,6.705,2445.8,2445.5,4.53268651]
[1750812544594,6.705,2445.8,2445.5,0.44356487]
[1750812544995,10.79368586,2445.8,2445.5,0.44356487]
[1750812545304,4.08882865,2445.7,2445.3,0.8069]
[1750812545827,4.08903942,2445.6,2445.1,7.51155547]
[1750812546517,4.08888942,2445.7,2445.2,4.08961584]
[1750812547011,4.08910476,2445.6,2445.1,7.51161419]
[1750812547394,4.08889083,2445.7,2445.2,4.08963357]
[1750812548195,4.08889083,2445.7,2445.2,5.24976662]
[1750812548410,4.08898847,2445.6,2445.2,1.16013305]
[1750812548984,4.08898847,2445.6,2445.2,5.24977452]
[1750812549188,4.08898183,2445.6,2445.2,1.16013305]
[1750812549911,4.08898183,2445.6,2445.1,6.61652793]
[1750812549912,4.0891496,2445.5,2445.1,2.5268]
[1750812550091,4.08905739,2445.6,2445.1,6.61658686]
[1750812550292,4.0891728,2445.5,2445.1,0.7778]
[1750812550720,4.0891728,2445.5,2445.1,4.86759949]
[1750812551024,4.8825463,2445.6,2445.1,4.86759949]
[1750812551194,4.08915914,2445.5,2445.1,4.86759949]
[1750812551390,4.88254248,2445.6,2445.1,4.86759949]
[1750812551598,4.08904248,2445.6,2445.1,5.9381711]
[1750812551926,4.08915537,2445.5,2445.1,5.9381711]
[1750812552113,4.08915537,2445.5,2445.1,1.84837161]
[1750812552314,4.08932902,2445.4,2444.9,6.66175367]
[1750812552517,4.08952086,2445.3,2444.9,0.8237]
[1750812554715,11.54740424,2445.4,2444.9,4.9138244]
[1750812555800,11.54738055,2445.4,2444.6,0.8178]
[1750812556004,4.08947777,2445.3,2444.8,4.09031149]
[1750812557502,11.54734285,2445.4,2444.9,4.09006226]
[1750812557702,6.702,2445.4,2445.0,4.90772697]
[1750812557904,6.702,2445.4,2445.1,4.08980795]
[1750812558311,6.702,2445.4,2445.0,4.90769266]
[1750812558506,6.702,2445.4,2445.1,0.89977549]
[1750812559033,4.08919556,2445.5,2445.1,4.98957954]
[1750812559215,10.79019556,2445.5,2445.1,0.89977549]
[1750812560750,4.08932622,2445.4,2445.1,0.89977549]
[1750812560936,4.08932622,2445.4,2445.0,0.8178]
[1750812562145,10.7946,2445.9,2445.1,0.798]
[1750812562449,10.0,2445.6,2445.1,4.88780267]
[1750812562653,10.0,2445.7,2445.2,4.08963107]
[1750812562810,10.0,2445.7,2445.2,4.98737444]
[1750812563328,10.0,2445.7,2445.3,4.08945962]
[1750812564832,10.0,2445.8,2445.5,4.08906619]
[1750812565931,1.73983697,2446.1,2445.6,0.798]
[1750812566232,10.0,2446.0,2445.6,4.88689447]
[1750812566433,10.0,2446.0,2445.7,4.08878197]
[1750812567725,10.0,2446.0,2445.6,5.78450942]
[1750812568121,1.73983697,2446.1,2445.7,4.08873314]
[1750812568322,18.43883697,2446.1,2445.7,4.08873314]
[1750812569035,18.43883697,2446.1,2445.6,0.798]
[1750812569036,19.20463697,2446.1,2445.6,0.798]
[1750812569236,4.08856327,2445.9,2445.4,4.08923304]
[1750812569641,4.0886604,2445.8,2445.3,4.86559851]
[1750812570015,4.0885612,2445.9,2445.4,4.08928322]
[1750812570216,4.08864699,2445.8,2445.4,4.08928322]
[1750812570413,4.08873467,2445.8,2445.3,4.86565673]
[1750812570767,4.08873467,2445.8,2445.3,5.61649674]
[1750812571733,4.08882711,2445.7,2445.3,1.52704001]
[1750812572376,4.08924124,2445.5,2445.1,0.7676]
[1750812572863,11.58868119,2445.7,2445.2,4.08963344]
[1750812573870,7.4998,2445.7,2445.1,0.7676]
[1750812574240,11.58861072,2445.7,2445.2,4.08957125]
[1750812574429,11.58873554,2445.7,2445.1,0.7676]
[1750812574634,4.08897612,2445.6,2445.1,4.85740735]
[1750812574851,11.58869433,2445.7,2445.2,4.08961525]
[1750812575328,10.78689433,2445.7,2445.3,4.08945862]
[1750812575544,10.78689433,2445.7,2445.1,5.34316342]
[1750812575545,10.78681544,2445.7,2445.2,4.08955089]
[1750812576062,6.698,2445.7,2445.3,4.0894754]
[1750812576451,10.78681936,2445.7,2445.3,4.0894754]
[1750812577058,6.698,2445.7,2445.3,4.0894754]
[1750812577434,6.698,2445.7,2445.4,4.08919865]
[1750812577634,6.698,2445.7,2445.3,0.8245]
[1750812577834,6.698,2445.7,2445.5,4.08914332]
[1750812578035,6.698,2445.7,2445.6,0.81784539]
[1750812579571,6.698,2445.7,2445.4,4.08921945]
[1750812582049,6.698,2445.7,2445.5,4.08903017]
[1750812582249,6.698,2445.7,2445.5,4.08905145]
[1750812584244,6.698,2445.7,2445.6,4.08897612]
[1750812584949,12.52433697,2446.1,2445.6,4.08897612]
[1750812584950,16.61258002,2446.1,2445.6,4.08897612]
[1750812585149,10.0,2445.9,2445.6,4.08897612]
[1750812585378,10.0,2445.9,2445.6,4.90678511]
[1750812585566,10.0,2445.9,2445.6,5.70898511]
[1750812585976,6.695,2446.0,2445.6,5.70898511]
[1750812586179,10.78332403,2446.0,2445.6,0.8022]
[1750812587184,4.08847554,2445.9,2445.6,0.8022]
[1750812588286,10.78340201,2446.0,2445.6,0.8022]
[1750812588483,4.08850189,2445.9,2445.6,0.8022]
[1750812588682,4.08850189,2445.9,2445.4,4.08922055]
[1750812588683,4.0885018,2445.9,2445.4,4.89150274]
[1750812588855,10.78340425,2446.0,2445.5,4.08900355]
[1750812589985,10.78340425,2446.0,2445.4,5.9641066]
[1750812589986,10.78340425,2446.0,2445.6,4.08897236]
[1750812590286,10.78340425,2446.0,2445.5,4.0890464]
[1750812591286,6.695,2446.0,2445.6,4.08896334]
[1750812591757,10.78330888,2446.0,2445.5,4.08905271]
[1750812592981,6.695,2446.0,2445.6,4.08896393]
[1750812593196,10.78331111,2446.0,2445.5,4.08906566]
[1750812594483,10.78331111,2446.0,2445.6,4.08897488]
[1750812594987,10.78331111,2446.0,2445.5,4.08906078]
[1750812596092,4.08850439,2445.9,2445.5,4.08906078]
[1750812596294,4.08850439,2445.9,2445.5,5.26888799]
[1750812596889,10.78340368,2446.0,2445.6,4.08895751]
[1750812597254,10.78340368,2446.0,2445.5,5.26888798]
[1750812597691,6.695,2446.0,2445.6,4.08896229]
[1750812599081,10.0,2446.0,2445.7,4.9083852]
[1750812599792,10.0,2446.1,2445.7,4.9083852]
[1750812599991,6.64041346,2446.3,2445.8,4.08857171]
[1750812600290,16.692,2446.2,2445.9,4.08846685]
[1750812600665,16.692,2446.2,2445.8,4.08855301]
[1750812600981,6.692,2446.2,2445.8,4.08855301]
[1750812601288,10.78005911,2446.2,2445.9,1.00146557]
[1750812601461,10.78005911,2446.2,2445.7,4.9083852]
[1750812601663,6.692,2446.2,2445.8,4.08862403]
[1750812602160,10.77999848,2446.2,2445.8,4.08862403]
[1750812602366,10.77999848,2446.2,2445.7,4.90831707]
[1750812602557,6.692,2446.2,2445.8,0.8997194]
[1750812602790,14.0877069,2446.4,2445.9,4.08846373]
[1750812602988,20.77866308,2446.4,2445.8,4.98830736]
[1750812603193,20.77868492,2446.4,2445.8,0.8997194]
[1750812603387,4.08838241,2446.0,2445.5,5.26885391]
[1750812603696,4.85172292,2446.1,2445.6,4.08895983]
[1750812603895,11.54272292,2446.1,2445.6,4.08895983]
[1750812604390,6.691,2446.1,2445.8,4.0885495]
[1750812605364,6.691,2446.1,2445.9,4.08836926]
[1750812605566,6.691,2446.1,2446.0,0.81769188]
[1750812605764,6.691,2446.1,2445.9,4.08836926]
[1750812606384,6.691,2446.1,2446.0,4.08830744]
[1750812606699,6.691,2446.1,2445.9,4.08839949]
[1750812606883,6.691,2446.1,2445.9,4.90179949]
[1750812607082,10.0,2446.4,2446.0,4.08830744]
[1750812607264,0.815,2446.6,2446.2,4.08786227]
[1750812607464,6.69,2446.6,2446.3,0.8134]
[1750812607688,10.0,2446.6,2446.3,4.90108809]
[1750812608503,10.0,2446.6,2446.3,5.79999273]
[1750812608679,10.0,2446.6,2446.4,4.08763099]
[1750812608873,17.35666667,2446.8,2446.4,4.08763099]
[1750812609092,21.44367241,2446.8,2446.3,5.8000265]
[1750812610070,17.35666667,2446.8,2446.4,4.08761782]
[1750812610271,7.35666667,2446.8,2446.4,4.94535109]
[1750812610591,10.66666667,2446.8,2446.5,4.08733658]
[1750812610995,0.66666667,2446.8,2446.6,4.9007011]
[1750812611300,0.66666667,2446.8,2446.7,0.49007011]
[1750812611499,0.66666667,2446.8,2446.6,0.8134]
[1750812611674,0.66666667,2446.8,2446.6,4.90069568]
[1750812612091,0.66666667,2446.8,2446.6,0.8134]
[1750812613396,0.66666667,2446.8,2446.6,4.90066612]
[1750812614901,0.66666667,2446.8,2446.7,4.08713777]
[1750812615103,0.66666667,2446.8,2446.7,4.98593508]
[1750812615406,0.66666667,2446.8,2446.7,6.36893508]
[1750812617193,0.66666667,2446.8,2446.7,13.05593508]
[1750812624621,10.824,2447.8,2447.5,4.0857206]
[1750812624622,0.824,2447.8,2447.5,4.0857206]
[1750812624913,0.824,2447.8,2447.6,0.40857206]
[1750812625279,0.824,2447.8,2447.3,4.08612666]
[1750812625485,4.90936857,2447.8,2447.3,4.08612666]
[1750812626096,4.90939336,2447.8,2447.3,4.08612666]
[1750812626401,4.90937932,2447.8,2447.3,4.08610749]
[1750812627913,4.08547852,2447.7,2447.3,4.08610749]
[1750812628302,4.08547852,2447.7,2447.2,4.08621273]
[1750812629210,4.08565504,2447.6,2447.1,12.50734867]
[1750812629509,4.08605906,2447.4,2446.9,4.08672018]
[1750812629877,4.08605906,2447.4,2446.8,4.0869489]
[1750812629878,4.84481409,2447.3,2446.8,4.0869489]
[1750812630431,4.84516347,2447.1,2446.6,4.08720826]
[1750812631010,4.84516347,2447.1,2446.7,4.08711555]
[1750812631207,0.7586,2447.1,2446.6,4.08722234]
[1750812631414,0.7586,2447.1,2446.7,4.08713232]
[1750812631618,4.84507073,2447.1,2446.6,5.91362686]
[1750812631822,0.7586,2447.1,2446.7,4.08711754]
[1750812632335,0.7586,2447.1,2446.6,1.82637505]
[1750812632533,0.7586,2447.1,2446.5,12.50645297]
[1750812632707,0.7586,2447.1,2446.7,4.08712691]
[1750812632907,4.84510694,2447.1,2446.6,4.08723133]
[1750812633728,0.7586,2447.1,2446.7,4.08712763]
[1750812634533,0.7586,2447.1,2446.8,4.08697041]
[1750812635233,0.7586,2447.1,2446.9,4.08679322]
[1750812635731,0.7586,2447.1,2446.8,4.08688942]
[1750812635929,0.7586,2447.1,2446.8,4.08696507]
[1750812636098,4.86368574,2447.5,2447.0,4.08655592]
[1750812636417,4.08605675,2447.4,2446.9,4.08674655]
[1750812637841,4.08622084,2447.3,2446.8,4.57183693]
[1750812638196,4.86367401,2447.5,2446.8,4.57183693]
[1750812638197,4.08631301,2447.2,2446.8,0.48487894]
[1750812638397,0.7642,2447.1,2446.7,4.08709614]
[1750812639410,0.7642,2447.1,2446.6,1.737]
[1750812639616,0.7642,2447.1,2446.7,4.08712639]
[1750812640052,4.85069194,2447.1,2446.6,5.82421453]
[1750812640254,0.7642,2447.1,2446.7,4.0870774]
[1750812641650,4.85067719,2447.1,2446.7,4.0870774]
[1750812641951,4.85067719,2447.1,2446.6,5.82421166]
[1750812642251,4.85067719,2447.1,2446.6,7.64865469]
[1750812643368,0.7642,2447.1,2446.7,4.08713037]
[1750812644948,4.85067243,2447.1,2446.7,4.08713037]
[1750812645248,0.7642,2447.1,2446.7,4.08713037]
[1750812646148,4.85067735,2447.1,2446.7,4.08713037]
[1750812646353,4.85067735,2447.1,2446.6,7.64865319]
[1750812647375,4.08687887,2446.9,2446.4,0.85771212]
[1750812647528,4.83998944,2446.8,2446.4,4.08756258]
[1750812647863,0.753,2446.8,2446.4,4.08756258]
[1750812648563,4.83999322,2446.8,2446.4,4.08756258]
[1750812648765,4.83999322,2446.8,2446.4,4.08763382]
[1750812649055,0.753,2446.8,2446.4,4.08763382]
[1750812649423,0.753,2446.8,2446.5,4.08746068]
[1750812650216,0.753,2446.8,2446.4,4.0875579]
[1750812650426,0.753,2446.8,2446.4,0.9912346]
[1750812650624,14.08637989,2447.2,2446.7,4.08713777]
[1750812650928,0.815,2447.1,2446.4,7.30082356]
[1750812651132,0.815,2447.1,2446.7,4.08706129]
[1750812651329,0.815,2447.1,2446.4,7.30082356]
[1750812651535,0.815,2447.1,2446.8,4.08696231]
[1750812651850,10.0,2447.2,2446.8,4.08696231]
[1750812652753,10.0,2447.2,2446.5,7.9925587]
[1750812652934,10.0,2447.2,2446.8,4.08687976]
[1750812653456,0.7776,2447.3,2446.5,7.9925587]
[1750812653630,0.7776,2447.3,2447.0,4.0865257]
[1750812653953,0.7776,2447.3,2446.9,4.08672098]
[1750812655054,0.7776,2447.3,2446.8,4.08696656]
[1750812655055,0.7776,2447.3,2447.0,4.08662865]
[1750812655871,0.7776,2447.3,2446.8,1.734]
[1750812656035,0.7776,2447.3,2447.1,4.08646669]
[1750812656884,4.08525631,2447.9,2447.2,4.08630271]
[1750812657177,4.08548398,2447.7,2447.2,4.08620677]
[1750812658397,4.08583868,2447.5,2447.0,4.87965888]
[1750812658572,4.08598982,2447.4,2447.0,5.82055888]
[1750812658743,4.88814427,2447.3,2446.9,4.08673582]
[1750812658940,0.8009,2447.6,2447.4,4.08588853]
[1750812659284,0.8009,2447.6,2447.5,4.08580183]
[1750812659481,0.8009,2447.9,2447.5,4.08568264]
[1750812659842,0.8009,2447.9,2447.6,4.0856349]
[1750812660047,0.8009,2447.9,2447.5,4.08568264]
[1750812660355,4.0845502,2448.3,2447.6,4.08558599]
[1750812660675,4.0845502,2448.3,2447.8,4.08524839]
[1750812661272,0.8152,2448.4,2448.0,4.08494914]
[1750812661852,0.8152,2448.4,2447.8,0.8136]
[1750812662062,0.8152,2448.4,2448.0,4.08482154]
[1750812662249,0.8152,2448.4,2447.9,5.81905236]
[1750812662678,0.8152,2448.4,2448.0,4.08490572]
[1750812662979,0.8152,2448.4,2448.1,4.08466307]
[1750812663480,0.8152,2448.4,2448.0,4.08487999]
[1750812663676,0.8152,2448.4,2448.0,5.15663551]
[1750812663881,0.6667,2448.5,2448.2,4.08462236]
[1750812664472,4.75087049,2448.5,2448.0,4.08490358]
[1750812664651,4.75087049,2448.5,2447.9,5.81903167]
[1750812664851,4.75087049,2448.5,2448.0,4.08490888]
[1750812665052,4.08432747,2448.4,2447.9,5.81912076]
[1750812665279,0.6667,2448.5,2448.0,4.08496732]
[1750812665483,0.6667,2448.5,2447.9,5.81905097]
[1750812665484,4.75095769,2448.5,2447.9,5.81905097]
[1750812665918,4.75095769,2448.5,2448.0,4.08491274]
[1750812666192,0.6667,2448.5,2448.1,4.0847953]
[1750812666355,0.6667,2448.5,2448.2,4.08460775]
[1750812666556,0.6667,2448.5,2447.9,1.734]
[1750812666752,0.6667,2448.5,2448.0,0.25476]
[1750812667057,0.6667,2448.5,2448.2,4.08451877]
[1750812667455,0.6667,2448.5,2448.3,4.08441542]
[1750812667656,0.6667,2448.5,2448.3,4.08435108]
[1750812668801,0.6667,2448.5,2448.4,4.08429995]
[1750812669163,0.6667,2448.5,2448.4,4.57436995]
[1750812669384,0.6667,2448.5,2448.4,6.30836995]
[1750812669790,0.6667,2448.5,2448.4,0.49007]
[1750812669960,0.6667,2448.5,2448.4,1.734]
[1750812670273,0.6667,2448.5,2448.4,4.08429995]
[1750812670989,0.6667,2448.5,2448.3,5.81839622]
[1750812671176,0.6667,2448.5,2448.3,1.733]
[1750812671790,0.6667,2448.5,2448.2,1.733]
[1750812672180,0.6667,2448.5,2448.1,1.733]
[1750812672492,0.6667,2448.5,2448.3,4.08446046]
[1750812672678,0.6667,2448.5,2448.2,4.36580175]
[1750812672861,0.6667,2448.5,2448.4,4.08429995]
[1750812673263,0.6667,2448.5,2448.4,4.88169995]
[1750812673699,0.6667,2448.5,2448.4,4.08429995]
[1750812673902,0.6667,2448.5,2448.4,4.92930567]
[1750812675800,0.6667,2448.5,2448.4,6.30070567]
[1750812679581,0.6667,2448.5,2448.4,4.92930567]
[1750812679787,0.6667,2448.5,2448.4,6.66230567]
[1750812681000,0.6667,2448.5,2448.4,6.66230567]
[1750812682005,0.6667,2448.5,2448.4,6.66030567]
[1750812682214,0.6667,2448.5,2448.4,5.81529995]
[1750812683537,0.6667,2448.5,2448.4,4.08429995]
[1750812686521,0.6667,2448.5,2448.4,5.81529995]
[1750812690324,0.6667,2448.5,2448.4,6.36529995]
[1750812690530,0.6667,2448.5,2448.4,7.17589995]
[1750812690733,0.6667,2448.5,2448.4,10.12380945]
[1750812690953,0.6667,2448.5,2448.4,9.91689507]
[1750812691337,0.6667,2448.5,2448.4,19.91689507]
[1750812691515,0.0317542,2448.5,2448.4,19.91689507]
[1750812691711,0.2185795,2448.8,2448.7,15.45359956]
[1750812691906,0.2185795,2448.8,2448.7,24.07635334]
[1750812692112,0.2185795,2448.8,2448.7,33.27476544]
[1750812692443,0.7987,2450.7,2449.3,0.55]
[1750812692642,4.08089839,2450.5,2449.6,10.55]
[1750812692823,4.08088693,2450.5,2449.9,4.08179557]
[1750812693211,4.08088693,2450.5,2450.0,4.08162583]
[1750812693413,0.8259,2450.4,2450.0,4.08162583]
[1750812693736,0.8259,2450.4,2450.3,4.08113292]
[1750812694213,0.8259,2450.4,2450.2,4.08122303]
[1750812694549,0.8259,2450.4,2449.9,4.08177966]
[1750812694750,0.8259,2450.4,2449.8,12.48695202]
[1750812694955,0.8259,2450.4,2450.2,4.08129445]
[1750812695112,0.8259,2450.6,2450.3,4.08113174]
[1750812695459,0.8259,2450.6,2450.2,4.08121773]
[1750812695826,0.8259,2450.6,2450.0,4.0816094]
[1750812696034,0.8259,2450.6,2450.2,4.08121071]
[1750812696424,0.7581,2450.9,2450.1,6.678]
[1750812696657,0.7581,2450.9,2450.5,4.08066773]
[1750812696854,0.2185795,2451.2,2450.7,0.55]
[1750812697166,0.2185795,2451.2,2450.7,4.63044352]
[1750812697380,0.2185795,2451.2,2451.0,4.07987022]
[1750812697528,0.2185795,2451.2,2450.9,6.682]
[1750812697732,0.2185795,2451.2,2450.9,10.76211562]
[1750812697956,0.2185795,2451.2,2450.9,6.682]
[1750812698139,0.2185795,2451.2,2451.0,4.07987154]
[1750812698354,0.2185795,2451.2,2451.0,4.07988439]
[1750812698564,0.2185795,2451.2,2451.1,4.6298009]
[1750812698771,0.2185795,2451.2,2451.1,6.3598009]
[1750812698943,0.2185795,2451.2,2451.1,7.1435009]
[1750812699345,0.2185795,2451.2,2451.1,2.5137]
[1750812699586,0.2185795,2451.2,2451.1,12.5058009]
[1750812701152,0.2185795,2451.2,2451.1,13.94305444]
[1750812701351,0.2185795,2451.2,2451.1,14.73065444]
[1750812701650,0.2185795,2451.2,2451.1,24.73065444]
[1750812701851,0.8004,2452.5,2452.0,4.07829969]
[1750812702162,0.8004,2452.5,2452.0,8.427]
[1750812702370,14.87796037,2452.5,2452.0,8.427]
[1750812702548,2.76260347,2452.5,2451.9,4.07837837]
[1750812702755,6.84013998,2452.5,2451.9,4.07837837]
[1750812702950,2.76260347,2452.5,2451.9,0.55]
[1750812703258,0.8004,2452.5,2451.9,1.3705]
[1750812703471,0.8004,2452.5,2451.9,8.0755]
[1750812703669,0.8004,2452.5,2452.3,4.07779476]
[1750812704066,0.66666667,2452.6,2452.2,5.80696756]
[1750812704291,0.66666667,2452.6,2452.4,4.07754843]
[1750812704600,0.66666667,2452.6,2451.9,1.3705]
[1750812704764,4.74398286,2452.6,2452.0,12.51321224]
[1750812704953,5.62608971,2452.6,2452.0,12.51321224]
[1750812705174,5.62614552,2452.6,2452.0,8.435]
[1750812705383,1.54877352,2452.6,2452.1,4.07812743]
[1750812705778,0.66666667,2452.6,2452.2,4.07795398]
[1750812705955,0.66666667,2452.6,2452.0,12.51329775]
[1750812705956,4.87727805,2452.5,2452.0,4.07820567]
[1750812706288,0.7998,2452.5,2452.1,4.07813033]
[1750812706473,0.7998,2452.5,2452.3,4.07780254]
[1750812707555,0.7998,2452.5,2452.4,4.07763823]
[1750812707756,0.66666667,2452.6,2452.4,4.07763823]
[1750812708260,0.66666667,2452.6,2452.4,4.07751843]
[1750812708594,0.66666667,2452.6,2452.5,4.07747196]
[1750812708765,0.66666667,2452.6,2452.1,0.55]
[1750812708970,0.66666667,2452.6,2452.2,4.07793791]
[1750812709171,0.66666667,2452.6,2452.1,4.93866456]
[1750812709372,0.66666667,2452.6,2452.3,4.07778762]
[1750812709894,0.66666667,2452.6,2452.2,4.0779164]
[1750812710696,0.66666667,2452.6,2452.3,4.07779081]
[1750812710864,0.66666667,2452.6,2452.4,4.07758928]
[1750812711272,0.66666667,2452.6,2452.5,7.14487196]
[1750812712091,0.8013,2453.5,2453.1,4.07647466]
[1750812712272,0.8013,2453.5,2453.2,4.0762029]
[1750812712673,0.8015,2453.3,2452.7,4.07700181]
[1750812712881,0.8015,2453.3,2452.8,4.0769302]
[1750812713073,4.87767277,2453.3,2452.8,4.0769302]
[1750812713281,0.8015,2453.3,2452.5,7.17783178]
[1750812713484,0.8015,2453.3,2452.5,5.83943178]
[1750812713701,0.8015,2453.3,2452.9,4.07674396]
[1750812714004,0.8015,2453.3,2453.0,4.07656064]
[1750812714202,0.8015,2453.3,2453.1,4.07635599]
[1750812714390,0.8015,2453.3,2453.0,4.0766382]
[1750812714595,0.8015,2453.3,2453.2,4.07630849]
[1750812715104,0.8015,2453.3,2452.2,0.8012]
[1750812715306,0.8015,2452.9,2452.5,4.07738515]
[1750812715902,0.8015,2452.9,2452.4,4.07755656]
[1750812716107,0.8015,2452.9,2452.5,4.07738287]
[1750812716304,4.87830866,2452.9,2452.3,1.762]
[1750812716606,4.07706197,2452.8,2452.3,1.762]
[1750812716981,4.97259532,2452.8,2452.3,1.762]
[1750812717186,0.89553335,2452.8,2452.3,1.762]
[1750812717494,4.87832745,2452.9,2452.3,1.762]
[1750812717898,4.07705896,2452.8,2452.3,5.83978223]
[1750812718093,0.8015,2452.9,2452.4,4.07763823]
[1750812718281,0.8015,2452.9,2452.4,4.07753728]
[1750812718482,2.6969726,2452.9,2452.3,1.762]
[1750812718690,6.77391084,2452.9,2452.3,5.83978863]
[1750812719010,2.6969726,2452.9,2452.4,4.07763279]
[1750812719194,0.8105,2452.8,2451.9,10.5853]
[1750812719395,0.8105,2452.8,2452.5,4.07746356]
[1750812719791,0.8105,2452.8,2452.4,4.07754939]